fUST/lending_fUST_20251115
["ID","MTS","AMOUNT","RATE_DAILY","PERIOD"]
[393965026,1763136033888,2343.75,0.00030137,120]
[393965029,1763136077608,74999.999999,0.00039555,120]
[393965040,1763136173059,718.00498,0.00013699,2]
[393965041,1763136173270,718.00498,0.00020187,2]
[393965108,1763136395011,5000.0,0.00022562,2]
[393965109,1763136403894,5000.0,0.00022562,2]
[393965110,1763136407266,338.43665522,0.00039555,5]
[393965111,1763136408994,239.365,0.00039555,5]
[393965112,1763136419330,5000.0,0.00022562,2]
[393965113,1763136427197,5000.0,0.00022562,2]
[393965115,1763136573512,1999.969999,0.00032866,120]
[393965146,1763136631784,-883.15292008,0.00022742,2]
[393965148,1763136631793,-1136.0,0.00022742,2]
[393965150,1763136631802,-160.81857196,0.00022829,2]
[393965152,1763136631812,-193.46205043,0.00022842,2]
[393965154,1763136631821,-228.61645753,0.00022946,10]
[393965156,1763136631832,-122.56354247,0.00022946,10]
[393965158,1763136631842,-548.32,0.00022946,10]
[393965160,1763136631851,-456.93,0.00022946,10]
[393965162,1763136631860,-380.77,0.00022946,10]
[393965164,1763136631869,-300.0,0.00022954,2]
[393965166,1763136631878,-1200.0,0.00022954,2]
[393965167,1763136631887,-500.0,0.00022955,2]
[393965169,1763136631896,-500.0,0.00022955,2]
[393965171,1763136631905,-418.23241239,0.00022955,2]
[393965173,1763136631914,-500.0,0.00022955,2]
[393965176,1763136631923,-500.0,0.00022955,2]
[393965178,1763136631932,-500.0,0.00022955,2]
[393965180,1763136631943,-500.0,0.00022955,2]
[393965182,1763136631952,-390.006017,0.00022955,2]
[393965184,1763136631961,-382.29828515,0.00022955,2]
[393965186,1763136631970,-500.0,0.00022955,2]
[393965188,1763136631979,-500.0,0.00022955,2]
[393965189,1763136631988,-500.0,0.00022955,2]
[393965191,1763136631997,-500.0,0.00022955,2]
[393965193,1763136632006,-500.0,0.00022955,2]
[393965195,1763136632015,-500.0,0.00022955,2]
[393965197,1763136632024,-500.0,0.00022955,2]
[393965198,1763136632034,-500.0,0.00022955,2]
[393965200,1763136632044,-500.0,0.00022955,2]
[393965202,1763136632053,-500.0,0.00022955,2]
[393965204,1763136632062,-500.0,0.00022955,2]
[393965206,1763136632072,-500.0,0.00022955,2]
[393965208,1763136632081,-500.0,0.00022955,2]
[393965210,1763136632090,-500.0,0.00022955,2]
[393965212,1763136632098,-500.0,0.00022955,2]
[393965214,1763136632107,-500.0,0.00022955,2]
[393965216,1763136632116,-500.0,0.00022955,2]
[393965217,1763136632127,-500.0,0.00022955,2]
[393965219,1763136632136,-500.0,0.00022955,2]
[393965221,1763136632146,-250.0,0.00022955,2]
[393965223,1763136632155,-500.0,0.00022955,2]
[393965225,1763136632164,-500.0,0.00022955,2]
[393965227,1763136632173,-500.0,0.00022955,2]
[393965229,1763136632182,-500.0,0.00022955,2]
[393965231,1763136632191,-500.0,0.00022955,2]
[393965233,1763136632200,-500.0,0.00022955,2]
[393965234,1763136632209,-500.0,0.00022955,2]
[393965236,1763136632219,-500.0,0.00022955,2]
[393965238,1763136632228,-648.25501312,0.00022955,2]
[393965240,1763136632238,-500.0,0.00022955,2]
[393965242,1763136632248,-304.01463779,0.00022955,2]
[393965244,1763136632257,-500.0,0.00022955,2]
[393965246,1763136632266,-576.82262747,0.00022955,2]
[393965248,1763136632275,-500.0,0.00022955,2]
[393965250,1763136632286,-500.0,0.00022955,2]
[393965252,1763136632295,-500.0,0.00022955,2]
[393965254,1763136632305,-500.0,0.00022955,2]
[393965255,1763136632315,-500.0,0.00022955,2]
[393965257,1763136632324,-500.0,0.00022955,2]
[393965259,1763136632334,-500.0,0.00022955,2]
[393965261,1763136632343,-500.0,0.00022955,2]
[393965263,1763136632353,-626.56992618,0.00022955,2]
[393965265,1763136632362,-500.0,0.00022955,2]
[393965267,1763136632372,-500.0,0.00022955,2]
[393965269,1763136632381,-500.0,0.00022955,2]
[393965271,1763136632390,-500.0,0.00022955,2]
[393965273,1763136632399,-500.0,0.00022955,2]
[393965275,1763136632408,-500.0,0.00022955,2]
[393965277,1763136632417,-500.0,0.00022955,2]
[393965278,1763136632427,-500.0,0.00022955,2]
[393965280,1763136632436,-500.0,0.00022955,2]
[393965282,1763136632445,-500.0,0.00022955,2]
[393965284,1763136632454,-500.0,0.00022955,2]
[393965286,1763136632463,-500.0,0.00022955,2]
[393965288,1763136632473,-500.0,0.00022955,2]
[393965290,1763136632482,-500.0,0.00022955,2]
[393965292,1763136632491,-321.99051585,0.00022955,2]
[393965294,1763136632500,-500.0,0.00022955,2]
[393965295,1763136632509,-500.0,0.00022955,2]
[393965297,1763136632518,-500.0,0.00022955,2]
[393965299,1763136632527,-180.7299918,0.00022955,2]
[393965301,1763136632536,-500.0,0.00022955,2]
[393965303,1763136632545,-500.0,0.00022955,2]
[393965305,1763136632554,-500.0,0.00022955,2]
[393965307,1763136632563,-500.0,0.00022955,2]
[393965309,1763136632572,-500.0,0.00022955,2]
[393965310,1763136632581,-500.0,0.00022955,2]
[393965312,1763136632590,-500.0,0.00022955,2]
[393965314,1763136632599,-500.0,0.00022955,2]
[393965316,1763136632609,-500.0,0.00022955,2]
[393965318,1763136632620,-500.0,0.00022955,2]
[393965320,1763136632630,-500.0,0.00022955,2]
[393965322,1763136632639,-500.0,0.00022955,2]
[393965324,1763136632648,-500.0,0.00022955,2]
[393965326,1763136632660,-500.0,0.00022955,2]
[393965327,1763136632670,-500.0,0.00022955,2]
[393965329,1763136632679,-500.0,0.00022955,2]
[393965331,1763136632689,-500.0,0.00022955,2]
[393965333,1763136632699,-500.0,0.00022955,2]
[393965335,1763136632709,-500.0,0.00022955,2]
[393965337,1763136632718,-500.0,0.00022955,2]
[393965339,1763136632728,-500.0,0.00022955,2]
[393965341,1763136632737,-500.0,0.00022955,2]
[393965343,1763136632747,-500.0,0.00022955,2]
[393965344,1763136632755,-500.0,0.00022955,2]
[393965345,1763136632764,-500.0,0.00022955,2]
[393965346,1763136632773,-500.0,0.00022955,2]
[393965347,1763136632783,-500.0,0.00022955,2]
[393965348,1763136632791,-500.0,0.00022955,2]
[393965349,1763136632800,-500.0,0.00022955,2]
[393965350,1763136632809,-500.0,0.00022955,2]
[393965351,1763136632818,-500.0,0.00022955,2]
[393965352,1763136632826,-341.86918083,0.00022955,2]
[393965353,1763136632835,-500.0,0.00022955,2]
[393965354,1763136632845,-500.0,0.00022955,2]
[393965355,1763136632855,-500.0,0.00022955,2]
[393965356,1763136632865,-500.0,0.00022955,2]
[393965357,1763136632874,-500.0,0.00022955,2]
[393965358,1763136632883,-500.0,0.00022955,2]
[393965359,1763136632893,-500.0,0.00022955,2]
[393965360,1763136632902,-500.0,0.00022955,2]
[393965361,1763136632911,-500.0,0.00022955,2]
[393965362,1763136632921,-500.0,0.00022955,2]
[393965363,1763136632930,-500.0,0.00022955,2]
[393965364,1763136632939,-500.0,0.00022955,2]
[393965365,1763136632949,-500.0,0.00022955,2]
[393965366,1763136632959,-500.0,0.00022955,2]
[393965367,1763136632968,-500.0,0.00022955,2]
[393965369,1763136632977,-500.0,0.00022955,2]
[393965370,1763136632987,-607.06660202,0.00022955,2]
[393965372,1763136632997,-500.0,0.00022955,2]
[393965389,1763136633006,-500.0,0.00022955,2]
[393965391,1763136633151,-500.0,0.00022955,2]
[393965394,1763136633161,-500.0,0.00022955,2]
[393965396,1763136633170,-500.0,0.00022955,2]
[393965398,1763136633180,-500.0,0.00022955,2]
[393965399,1763136633189,-500.0,0.00022955,2]
[393965402,1763136633198,-500.0,0.00022955,2]
[393965403,1763136633207,-500.0,0.00022955,2]
[393965406,1763136633217,-500.0,0.00022955,2]
[393965408,1763136633226,-500.0,0.00022955,2]
[393965409,1763136633236,-500.0,0.00022955,2]
[393965411,1763136633245,-500.0,0.00022955,2]
[393965413,1763136633254,-500.0,0.00022955,2]
[393965416,1763136633264,-500.0,0.00022955,2]
[393965418,1763136633273,-500.0,0.00022955,2]
[393965420,1763136633286,-500.0,0.00022955,2]
[393965422,1763136633295,-500.0,0.00022955,2]
[393965424,1763136633304,-500.0,0.00022955,2]
[393965426,1763136633313,-500.0,0.00022955,2]
[393965428,1763136633323,-500.0,0.00022955,2]
[393965430,1763136633332,-500.0,0.00022955,2]
[393965432,1763136633341,-500.0,0.00022955,2]
[393965434,1763136633350,-500.0,0.00022955,2]
[393965436,1763136633360,-500.0,0.00022955,2]
[393965438,1763136633368,-500.0,0.00022955,2]
[393965440,1763136633377,-500.0,0.00022955,2]
[393965441,1763136633386,-500.0,0.00022955,2]
[393965442,1763136633396,-500.0,0.00022955,2]
[393965443,1763136633405,-500.0,0.00022955,2]
[393965444,1763136633415,-500.0,0.00022955,2]
[393965445,1763136633424,-500.0,0.00022955,2]
[393965446,1763136633433,-500.0,0.00022955,2]
[393965447,1763136633443,-500.0,0.00022955,2]
[393965448,1763136633453,-500.0,0.00022955,2]
[393965449,1763136633462,-350.86560624,0.00022955,2]
[393965450,1763136633472,-500.0,0.00022955,2]
[393965451,1763136633480,-500.0,0.00022955,2]
[393965452,1763136633490,-500.0,0.00022955,2]
[393965453,1763136633499,-500.0,0.00022955,2]
[393965454,1763136633508,-500.0,0.00022955,2]
[393965455,1763136633517,-500.0,0.00022955,2]
[393965456,1763136633526,-500.0,0.00022955,2]
[393965457,1763136633540,-477.0,0.00022955,2]
[393965458,1763136633551,-50000.0,0.00022956,2]
[393965459,1763136633560,-500.0,0.00022956,2]
[393965460,1763136633569,-500.0,0.00022956,2]
[393965461,1763136633578,-500.0,0.00022956,2]
[393965462,1763136633587,-500.0,0.00022956,2]
[393965463,1763136633597,-500.0,0.00022956,2]
[393965464,1763136633606,-500.0,0.00022956,2]
[393965465,1763136633615,-500.0,0.00022957,2]
[393965466,1763136633628,-500.0,0.00022958,2]
[393965467,1763136633638,-500.0,0.00022958,2]
[393965468,1763136633647,-500.0,0.00022973,2]
[393965469,1763136633657,-500.0,0.00022973,2]
[393965470,1763136633668,-500.0,0.00022973,2]
[393965471,1763136633677,-500.0,0.00022973,2]
[393965472,1763136633687,-500.0,0.00022973,2]
[393965473,1763136633696,-500.0,0.00022973,2]
[393965474,1763136633706,-500.0,0.00022973,2]
[393965475,1763136633715,-154.58,0.00023,7]
[393965476,1763136633724,-300.0,0.00023415,20]
[393965477,1763136633734,-300.0,0.00023415,20]
[393965478,1763136633743,-300.0,0.00023415,20]
[393965479,1763136633753,-300.0,0.00023415,20]
[393965480,1763136633762,-300.0,0.00023415,20]
[393965481,1763136633772,-300.0,0.00023415,20]
[393965482,1763136633785,-300.0,0.00023415,20]
[393965483,1763136633795,-300.0,0.00023415,20]
[393965484,1763136633805,-300.0,0.00023415,20]
[393965485,1763136633815,-300.0,0.00023415,20]
[393965486,1763136633824,-300.0,0.00023415,20]
[393965487,1763136633834,-300.0,0.00023415,20]
[393965488,1763136633844,-300.0,0.00023415,20]
[393965489,1763136633853,-300.0,0.00023415,20]
[393965490,1763136633863,-300.0,0.00023415,20]
[393965491,1763136633872,-600.0,0.00023415,20]
[393965492,1763136633882,-497.21368798,0.00023521,2]
[393965493,1763136633892,-835.35906938,0.00023521,2]
[393965494,1763136633902,-1000.0,0.00023521,2]
[393965495,1763136633912,-500.0,0.00023521,2]
[393965496,1763136633922,-538.54332799,0.00023521,2]
[393965497,1763136633931,-1500.0,0.00024068,2]
[393965498,1763136633940,-509.57266909,0.00024616,2]
[393965499,1763136633950,-428.26088458,0.00024658,2]
[393965500,1763136633959,-228.28521951,0.00024843,2]
[393965501,1763136633970,-500.0,0.00024873,2]
[393965502,1763136633980,-500.0,0.00024873,2]
[393965503,1763136633991,-500.0,0.00024899,2]
[393965504,1763136634001,-500.0,0.00024899,2]
[393965505,1763136634011,-500.0,0.00024899,2]
[393965506,1763136634021,-500.0,0.00024899,2]
[393965507,1763136634032,-500.0,0.00024899,2]
[393965508,1763136634042,-500.0,0.00024899,2]
[393965509,1763136634052,-500.0,0.00024899,2]
[393965510,1763136634061,-500.0,0.00024899,2]
[393965511,1763136634071,-7480.18,0.000249,7]
[393965512,1763136634081,-279.39,0.000249,14]
[393965513,1763136634090,-139473.61317476,0.000249,2]
[393965514,1763136634244,-2184.89267852,0.000249,2]
[393965540,1763136637666,-14382.48673572,0.000249,2]
[393965542,1763136637676,-420.0,0.00024919,2]
[393965544,1763136637686,-229.0,0.00025034,2]
[393965546,1763136637698,-244.72122097,0.00025421,2]
[393965547,1763136637708,-1000.0,0.00025421,2]
[393965548,1763136637717,-720.0,0.00025756,20]
[393965549,1763136637727,-160.0,0.00025925,2]
[393965550,1763136637736,-1261.58016278,0.00025968,2]
[393965551,1763136637745,-500.0,0.00026102,2]
[393965552,1763136637756,-3334.25290305,0.00026103,2]
[393965553,1763136637765,-260.0,0.00026473,2]
[393965554,1763136637774,-718.00498,0.00026676,2]
[393965555,1763136637784,-1388.3472284,0.00026875,2]
[393965556,1763136637794,-360.0,0.00027021,2]
[393965557,1763136637803,-587.0,0.00027052,2]
[393965558,1763136637812,-179.21399469,0.000272,4]
[393965559,1763136637821,-150.0,0.00027397,5]
[393965560,1763136637831,-460.0,0.00027569,2]
[393965561,1763136637840,-250.0,0.00027945,5]
[393965562,1763136637849,-400.38245665,0.00028,10]
[393965563,1763136637859,-560.0,0.00028117,2]
[393965564,1763136637870,-864.0,0.00028332,30]
[393965565,1763136637879,-459.59719238,0.00028493,5]
[393965566,1763136637888,-3294.97052669,0.00028614,2]
[393965567,1763136637898,-3334.25290305,0.00028635,2]
[393965568,1763136637907,-660.0,0.00028665,2]
[393965569,1763136637916,-78020.4962943,0.00028843,2]
[393965570,1763136637925,-3294.97052669,0.00028916,2]
[393965571,1763136637934,-154.58,0.000292,7]
[393965572,1763136637943,-760.0,0.00029213,2]
[393965573,1763136637952,-279.39,0.000293,14]
[393965574,1763136637961,-3294.97052669,0.00029312,2]
[393965575,1763136637970,-823.0,0.00029368,2]
[393965576,1763136637979,-3294.97052669,0.00029378,2]
[393965577,1763136637989,-604.38976742,0.00029388,20]
[393965578,1763136637998,-1071.015167,0.00029389,2]
[393965579,1763136638008,-30811.1754502,0.00029389,2]
[393965580,1763136638017,-7480.18,0.000294,7]
[393965581,1763136638027,-400.38245665,0.000294,7]
[393965582,1763136638038,-11886.91036892,0.00029535,2]
[393965583,1763136638051,-66133.58592538,0.00029535,2]
[393965584,1763136638060,-151.0,0.00029702,7]
[393965585,1763136638069,-860.0,0.00029761,2]
[393965586,1763136638079,-30818.01952989,0.00029771,2]
[393965587,1763136638088,-395.63,0.00029773,2]
[393965588,1763136638098,-3294.97052672,0.000298,2]
[393965589,1763136638107,-180.19513895,0.000299,2]
[393965590,1763136638117,-48320.04851456,0.0002998,2]
[393965591,1763136638128,-19020.30425594,0.0002998,2]
[393965592,1763136638139,-10680.1435238,0.0002998,2]
[393965593,1763136638149,-157.28301,0.00029983,7]
[393965594,1763136638158,-326.338218,0.00029983,7]
[393965595,1763136638167,-326.338218,0.00029983,7]
[393965596,1763136638176,-326.338218,0.00029983,7]
[393965597,1763136638185,-326.338218,0.00029983,7]
[393965598,1763136638195,-151.0,0.0002999,7]
[393965599,1763136638205,-151.0,0.0002999,7]
[393965600,1763136638214,-322.999459,0.0002999,10]
[393965601,1763136638223,-326.338218,0.00029993,7]
[393965602,1763136638232,-326.338218,0.00029993,7]
[393965603,1763136638241,-326.338218,0.00029993,7]
[393965604,1763136638251,-326.338218,0.00029993,7]
[393965605,1763136638380,-238917.56785512,0.0003,30]
[393965606,1763136638392,-282.94475157,0.0003,30]
[393965607,1763136638408,-806.017431,0.0003,30]
[393965618,1763136639847,-201.99158726,0.00024909,2]
[393965619,1763136639856,-238.35007297,0.00026909,2]
[393965620,1763136639865,-7.64086384,0.00028909,2]
[393965621,1763136639945,-267.06769484,0.00028909,2]
[393965622,1763136639955,-1111.41929333,0.0003,30]
[393965638,1763136645745,-359.36,0.0002999,10]
[393965640,1763136645754,-410.75497107,0.0003,30]
[393965642,1763136645844,-342.28354482,0.0003,30]
[393965643,1763136645856,-4524.50012894,0.0003,30]
[393965646,1763136657151,-299.46,0.0002999,10]
[393965647,1763136657161,-6227.3043605,0.0003,30]
[393965648,1763136657243,-1136.06,0.0003,30]
[393965649,1763136766703,2000.0,0.00039556,30]
[393965650,1763136767183,235.9,0.00039556,30]
[393965651,1763136880006,203.139,0.00039556,60]
[393965653,1763136979910,395.34011263,0.00023261,2]
[393965654,1763137022823,-3658.78006444,0.00023313,2]
[393965655,1763137022869,-182.25563749,0.00023362,2]
[393965656,1763137022904,-1200.0,0.0002341,2]
[393965657,1763137022938,-300.0,0.00023411,2]
[393965658,1763137022975,-500.0,0.00023412,2]
[393965659,1763137023011,-500.0,0.00023412,2]
[393965660,1763137023049,-500.0,0.00023412,2]
[393965661,1763137023089,-500.0,0.00023412,2]
[393965662,1763137023130,-500.0,0.00023412,2]
[393965663,1763137023168,-500.0,0.00023412,2]
[393965664,1763137023206,-491.86918083,0.00023412,2]
[393965665,1763137023240,-500.0,0.00023412,2]
[393965666,1763137023277,-500.0,0.00023412,2]
[393965667,1763137023313,-500.0,0.00023412,2]
[393965668,1763137023349,-500.0,0.00023412,2]
[393965669,1763137023384,-500.0,0.00023412,2]
[393965670,1763137023419,-500.0,0.00023412,2]
[393965671,1763137023455,-630.7299918,0.00023412,2]
[393965672,1763137023491,-500.0,0.00023412,2]
[393965673,1763137023528,-500.0,0.00023412,2]
[393965674,1763137023565,-500.0,0.00023412,2]
[393965675,1763137023603,-500.0,0.00023412,2]
[393965676,1763137023641,-500.0,0.00023412,2]
[393965677,1763137023678,-500.0,0.00023412,2]
[393965678,1763137023715,-500.0,0.00023412,2]
[393965679,1763137023753,-644.99043814,0.00023412,2]
[393965680,1763137023798,-500.0,0.00023412,2]
[393965681,1763137023843,-368.51607243,0.00023412,2]
[393965682,1763137023886,-500.0,0.00023412,2]
[393965683,1763137023927,-500.0,0.00023412,2]
[393965684,1763137023967,-500.0,0.00023412,2]
[393965685,1763137024012,-311.55718198,0.00023412,2]
[393965686,1763137024047,-1200.0,0.00023412,2]
[393965687,1763137024083,-300.0,0.00023412,2]
[393965688,1763137024401,-3658.78006444,0.00023413,2]
[393965689,1763137024414,-182.25563749,0.00023413,2]
[393965690,1763137024425,-1200.0,0.00023413,2]
[393965691,1763137024436,-300.0,0.00023413,2]
[393965692,1763137024449,-500.0,0.00023413,2]
[393965693,1763137024464,-500.0,0.00023413,2]
[393965694,1763137024475,-500.0,0.00023413,2]
[393965695,1763137024487,-500.0,0.00023413,2]
[393965696,1763137024499,-500.0,0.00023413,2]
[393965697,1763137024510,-500.0,0.00023413,2]
[393965698,1763137024522,-491.86918083,0.00023413,2]
[393965699,1763137024533,-500.0,0.00023413,2]
[393965700,1763137024543,-500.0,0.00023413,2]
[393965701,1763137024555,-500.0,0.00023413,2]
[393965702,1763137024566,-500.0,0.00023413,2]
[393965703,1763137024596,-500.0,0.00023413,2]
[393965704,1763137024623,-500.0,0.00023413,2]
[393965705,1763137024634,-630.7299918,0.00023413,2]
[393965706,1763137024645,-500.0,0.00023413,2]
[393965707,1763137024656,-500.0,0.00023413,2]
[393965708,1763137024667,-500.0,0.00023413,2]
[393965709,1763137024683,-500.0,0.00023413,2]
[393965710,1763137024694,-500.0,0.00023413,2]
[393965711,1763137024706,-500.0,0.00023413,2]
[393965712,1763137024722,-300.0,0.00023411,2]
[393965713,1763137024732,-200.0,0.00023413,2]
[393965714,1763137024761,-644.99043814,0.00023413,2]
[393965715,1763137024773,-500.0,0.00023413,2]
[393965716,1763137024784,-368.51607243,0.00023413,2]
[393965717,1763137024795,-500.0,0.00023413,2]
[393965718,1763137024807,-500.0,0.00023413,2]
[393965719,1763137024818,-500.0,0.00023413,2]
[393965720,1763137024832,-311.55718198,0.00023413,2]
[393965721,1763137024843,-1200.0,0.00023413,2]
[393965722,1763137024854,-300.0,0.00023413,2]
[393965723,1763137024865,-8422.60286578,0.00023413,2]
[393965724,1763137049055,6110.0,0.000233,2]
[393965725,1763137069534,-8561.10048031,0.00023413,2]
[393965726,1763137069571,-300.0,0.00023413,20]
[393965727,1763137069611,-300.0,0.00023413,20]
[393965728,1763137069648,-300.0,0.00023413,20]
[393965729,1763137069686,-300.0,0.00023413,20]
[393965730,1763137069724,-300.0,0.00023413,20]
[393965731,1763137069761,-300.0,0.00023413,20]
[393965732,1763137069800,-300.0,0.00023413,20]
[393965733,1763137069837,-300.0,0.00023413,20]
[393965734,1763137069876,-300.0,0.00023413,20]
[393965735,1763137069913,-300.0,0.00023413,20]
[393965736,1763137069950,-300.0,0.00023413,20]
[393965737,1763137069987,-300.0,0.00023413,20]
[393965738,1763137070024,-300.0,0.00023413,20]
[393965739,1763137070061,-300.0,0.00023413,20]
[393965740,1763137070097,-300.0,0.00023413,20]
[393965741,1763137070134,-600.0,0.00023413,20]
[393965742,1763137102905,500.0,0.00023412,2]
[393965743,1763137104290,558.1649631,0.00023412,2]
[393965744,1763137109931,-300.0,0.00023472,2]
[393965745,1763137109965,-500.0,0.00023473,2]
[393965746,1763137109998,-500.0,0.00023473,2]
[393965747,1763137125055,500.0,0.00023412,2]
[393965748,1763137125109,500.0,0.00023412,2]
[393965749,1763137125163,257.99894621,0.00023412,2]
[393965750,1763137179634,-300.0,0.00024147,20]
[393965751,1763137179671,-300.0,0.00024147,20]
[393965752,1763137179705,-300.0,0.00024147,20]
[393965753,1763137179740,-300.0,0.00024147,20]
[393965754,1763137179779,-300.0,0.00024147,20]
[393965755,1763137179818,-300.0,0.00024147,20]
[393965756,1763137179854,-300.0,0.00024147,20]
[393965757,1763137179891,-300.0,0.00024147,20]
[393965758,1763137179928,-300.0,0.00024147,20]
[393965759,1763137179967,-300.0,0.00024147,20]
[393965760,1763137180003,-300.0,0.00024147,20]
[393965761,1763137180041,-300.0,0.00024147,20]
[393965762,1763137180075,-300.0,0.00024147,20]
[393965763,1763137180111,-300.0,0.00024147,20]
[393965764,1763137180147,-300.0,0.00024147,20]
[393965765,1763137180183,-600.0,0.00024629,20]
[393965766,1763137204626,1185.0,0.000235,2]
[393965767,1763137215235,300.0,0.00024147,20]
[393965768,1763137215779,300.0,0.00024147,20]
[393965769,1763137216287,300.0,0.00024147,20]
[393965770,1763137216929,300.0,0.00024147,20]
[393965771,1763137217407,300.0,0.00024147,20]
[393965772,1763137217886,300.0,0.00024147,20]
[393965773,1763137218362,300.0,0.00024147,20]
[393965774,1763137219000,300.0,0.00024147,20]
[393965775,1763137220301,300.0,0.00024147,20]
[393965776,1763137220618,300.0,0.00024147,20]
[393965777,1763137221188,300.0,0.00024147,20]
[393965778,1763137222104,300.0,0.00024147,20]
[393965779,1763137222598,300.0,0.00024147,20]
[393965780,1763137223078,300.0,0.00024147,20]
[393965781,1763137223560,300.0,0.00024147,20]
[393965783,1763137272319,300.0,0.00024275,20]
[393965784,1763137272896,300.0,0.00024275,20]
[393965785,1763137273371,300.0,0.00024275,20]
[393965786,1763137273909,300.0,0.00024275,20]
[393965787,1763137274388,300.0,0.00024275,20]
[393965788,1763137274886,300.0,0.00024275,20]
[393965789,1763137275331,300.0,0.00024275,20]
[393965790,1763137275855,300.0,0.00024275,20]
[393965791,1763137276322,300.0,0.00024275,20]
[393965792,1763137276821,300.0,0.00024275,20]
[393965793,1763137277308,300.0,0.00024275,20]
[393965794,1763137278346,300.0,0.00024275,20]
[393965795,1763137278621,300.0,0.00024275,20]
[393965796,1763137279111,300.0,0.00024275,20]
[393965797,1763137279580,300.0,0.00024275,20]
[393965798,1763137288138,-600.0,0.00029207,30]
[393965799,1763137288197,-806.412,0.00029999,24]
[393965800,1763137288256,-182.435,0.00029999,24]
[393965801,1763137288314,-460934.85288854,0.0003,30]
[393965802,1763137288374,-87708.44647328,0.0003,30]
[393965803,1763137288432,-1068.37,0.0003,30]
[393965804,1763137288488,-400.38245665,0.0003,30]
[393965805,1763137288544,-1068.37,0.0003018,30]
[393965806,1763137288600,-1068.37,0.0003036,30]
[393965807,1763137288655,-536.36159651,0.00030443,16]
[393965808,1763137288715,-536.36159651,0.0003053,20]
[393965809,1763137288772,-536.36159651,0.00030617,24]
[393965810,1763137288837,-536.36159651,0.00030705,28]
[393965811,1763137288901,-536.36159651,0.00030792,31]
[393965812,1763137288958,-226.2937833,0.00030855,56]
[393965813,1763137289017,-181.66685712,0.00030855,56]
[393965814,1763137289084,-536.36159651,0.0003088,35]
[393965815,1763137289150,-400.38245665,0.000309,30]
[393965816,1763137289211,-333.33333333,0.0003091,17]
[393965817,1763137289269,-536.36159651,0.00030967,39]
[393965818,1763137289327,-350.0,0.00031,60]
[393965819,1763137289384,-536.36159651,0.00031054,42]
[393965820,1763137289440,-333.33333333,0.00031094,25]
[393965821,1763137289498,-536.36159651,0.00031142,46]
[393965822,1763137289552,-166.66666664,0.00031143,30]
[393965823,1763137289608,-536.36159651,0.00031229,50]
[393965824,1763137289665,-333.33333333,0.00031278,32]
[393965825,1763137289732,-536.36159651,0.00031317,54]
[393965826,1763137289927,-229.78857775,0.0003136,56]
[393965827,1763137289986,-536.36159651,0.00031404,57]
[393965828,1763137290043,-333.33333333,0.00031461,40]
[393965829,1763137290101,-715.274392,0.00031491,31]
[393965830,1763137290160,-715.274392,0.00031491,31]
[393965831,1763137290219,-715.274392,0.00031491,31]